[Event "2019 National Open"]
[Site "Las Vegas"]
[Date "2019.06.13"]
[Round "1"]
[White "Gustafsson, Alexander"]
[Black "Bradford, Joseph"]
[Result "0-1"]
[ECO "A48"]
[WhiteElo "2018"]
[BlackElo "2379"]
[PlyCount "78"]
[EventDate "2019.??.??"]
[TimeControl "5400+30"]
[WhiteClock "0:33:05"]
[BlackClock "1:05:58"]

1. d4 {[%emt 0:00:00]} Nf6 {[%emt 0:00:31]} 2. Nf3 {[%emt 0:00:01]} g6 {[%emt 0:00:30]} 3. e3 {[%emt 0:00:14]} Bg7 {[%emt 0:02:13]} 4. Be2 {[%emt 0:00:01]} c5 {[%emt 0:00:01]} 5. O-O {[%emt 0:00:01]} O-O {[%emt 0:02:06]} 6. b3 {[%emt 0:00:00]} cxd4 {[%emt 0:03:11]} 7. exd4 {[%emt 0:00:00]} d5 {[%emt 0:00:01]} 8. Bb2 {[%emt 0:00:42]} Nc6 {[%emt 0:02:21]} 9. c4 {[%emt 0:00:00]} Bf5 {[%emt 0:04:57]} 10. Nc3 {[%emt 0:00:59]} Rc8 {[%emt 0:00:44]} 11. Re1 {[%emt 0:05:06]} dxc4 {[%emt 0:09:54]} 12. bxc4 {[%emt 0:00:00]} Na5 {[%emt 0:05:48]} 13. Qa4 {[%emt 0:04:56]} Bd7 {[%emt 0:09:26]} 14. Qb4 {[%emt 0:00:00]} Nc6 {[%emt 0:06:28]} 15. Qa3 {[%emt 0:00:00]} Bg4 {[%emt 0:00:00]} 16. Rad1 {[%emt 0:00:00]} Na5 {[%emt 0:06:24]} 17. c5 {[%emt 0:00:00]} b6 {[%emt 0:08:56]} 18. Ne5 {[%emt 0:00:00]} Bxe2 {[%emt 0:05:58]} 19. Rxe2 {[%emt 0:00:00]} e6 {[%emt 0:00:05]} 20. Qa4 {[%emt 0:00:00]} Nd5 {[%emt 0:08:37]} 21. Ne4 {[%emt 0:06:09]} Nf4 {[%emt 0:00:00]} 22. Re3 {[%emt 0:02:53]} Qd5 {[%emt 0:03:35]} 23. Nd7 {[%emt 0:21:49]} f5 {[%emt 0:00:01]} 24. f3 {[%emt 0:00:01]} fxe4 {[%emt 0:00:00]} 25. Nxf8 {[%emt 0:00:00]} Rxf8 {[%emt 0:00:01]} 26. Rxe4 {[%emt 0:00:00]} Qg5 {[%emt 0:00:00]} 27. Qc2 {[%emt 0:00:03]} Qf5 {[%emt 0:00:00]} 28. Bc1 {[%emt 0:00:04]} Nd5 {[%emt 0:00:00]} 29. Qd3 {[%emt 0:00:03]} Nc6 {[%emt 0:00:00]} 30. cxb6 {[%emt 0:00:04]} axb6 {[%emt 0:00:00]} 31. g4 {[%emt 0:00:03]} Qf7 {[%emt 0:00:00]} 32. a3 {[%emt 0:00:04]} Rd8 {[%emt 0:00:00]} 33. Bg5 {[%emt 0:00:03]} Rd6 {[%emt 0:00:00]} 34. Rc1 {[%emt 0:00:02]} h6 {[%emt 0:00:00]} 35. Bd2 {[%emt 0:00:02]} Nf6 {[%emt 0:00:00]} 36. Ree1 {[%emt 0:00:05]} Nxd4 {[%emt 0:00:00]} 37. Rc8+ {[%emt 0:00:03]} Kh7 {[%emt 0:00:00]} 38. Bb4 {[%emt 0:00:02]} Rd7 {[%emt 0:00:00]} 39. Qe3 {[%emt 0:00:02]} Nd5 {[%emt 0:00:00]} 0-1

[Event "2019 National Open"]
[Site "Las Vegas"]
[Date "2019.06.13"]
[Round "2"]
[White "Chirila, Ioan-Cristian"]
[Black "Li, Eric"]
[Result "1-0"]
[ECO "A45"]
[WhiteElo "2561"]
[BlackElo "2155"]
[PlyCount "87"]
[EventDate "2019.??.??"]
[TimeControl "5400+30"]
[WhiteClock "0:10:42"]
[BlackClock "0:20:48"]

1. d4 {[%emt 0:00:00]} Nf6 {[%emt 0:00:07]} 2. Bf4 {[%emt 0:00:27]} d5 {[%emt 0:00:24]} 3. e3 {[%emt 0:00:11]} c5 {[%emt 0:00:11]} 4. Nf3 {[%emt 0:02:22]} Nc6 {[%emt 0:00:04]} 5. Nbd2 {[%emt 0:00:01]} e6 {[%emt 0:03:58]} 6. c3 {[%emt 0:01:03]} Bd6 {[%emt 0:00:58]} 7. Bg3 {[%emt 0:00:22]} O-O {[%emt 0:00:31]} 8. Bd3 {[%emt 0:00:37]} Qe7 {[%emt 0:04:19]} 9. Ne5 {[%emt 0:06:59]} Nd7 {[%emt 0:07:25]} 10. f4 {[%emt 0:02:09]} f6 {[%emt 0:07:47]} 11. Bxh7+ {[%emt 0:23:33]} Kxh7 {[%emt 0:00:20]} 12. Qh5+ {[%emt 0:00:15]} Kg8 {[%emt 0:00:04]} 13. Ng6 {[%emt 0:00:16]} Qe8 {[%emt 0:07:36]} 14. f5 {[%emt 0:07:00]} Bxg3+ {[%emt 0:03:41]} 15. hxg3 {[%emt 0:00:00]} exf5 {[%emt 0:01:17]} 16. O-O-O {[%emt 0:06:57]} Ne7 {[%emt 0:05:17]} 17. Qh8+ {[%emt 0:07:42]} Kf7 {[%emt 0:00:07]} 18. Nxf8 {[%emt 0:00:05]} Nxf8 {[%emt 0:05:12]} 19. dxc5 {[%emt 0:00:24]} Neg6 {[%emt 0:01:24]} 20. Qh5 {[%emt 0:00:03]} Qxe3 {[%emt 0:00:43]} 21. g4 {[%emt 0:03:39]} Qg5 {[%emt 0:04:22]} 22. Qxg5 {[%emt 0:01:02]} fxg5 {[%emt 0:00:49]} 23. Nf3 {[%emt 0:00:01]} Nf4 {[%emt 0:05:12]} 24. Rh8 {[%emt 0:01:12]} fxg4 {[%emt 0:12:37]} 25. Nxg5+ {[%emt 0:05:24]} Ke7 {[%emt 0:03:21]} 26. Re1+ {[%emt 0:13:54]} Be6 {[%emt 0:04:51]} 27. Kd2 {[%emt 0:00:00]} Rd8 {[%emt 0:07:01]} 28. g3 {[%emt 0:00:34]} N4g6 {[%emt 0:00:08]} 29. Rg8 {[%emt 0:00:55]} Re8 {[%emt 0:05:05]} 30. Nxe6 {[%emt 0:00:01]} Nxe6 {[%emt 0:00:06]} 31. Rxe8+ {[%emt 0:00:14]} Kxe8 {[%emt 0:00:07]} 32. Rxe6+ {[%emt 0:00:04]} Kf7 {[%emt 0:00:07]} 33. Rd6 {[%emt 0:00:48]} Ne5 {[%emt 0:00:13]} 34. Rxd5 {[%emt 0:00:13]} Ke6 {[%emt 0:00:36]} 35. Rxe5+ {[%emt 0:01:51]} Kxe5 {[%emt 0:00:04]} 36. Kd3 {[%emt 0:00:03]} a5 {[%emt 0:01:48]} 37. c4 {[%emt 0:00:34]} a4 {[%emt 0:00:27]} 38. Ke3 {[%emt 0:00:17]} g6 {[%emt 0:00:28]} 39. Kd3 {[%emt 0:00:00]} g5 {[%emt 0:00:23]} 40. Ke3 {[%emt 0:00:00]} Kf5 {[%emt 0:00:11]} 41. Kd4 {[%emt 0:00:00]} Ke6 {[%emt 0:01:27]} 42. Ke4 {[%emt 0:00:00]} Kf6 {[%emt 0:00:00]} 43. Kd5 {[%emt 0:00:00]} Kf5 {[%emt 0:00:00]} 44. b4 {[%emt 0:00:00]} 1-0

[Event "2019 National Open"]
[Site "Las Vegas"]
[Date "2019.06.13"]
[Round "2"]
[White "Sorokin, Aleksey"]
[Black "Griffith, Kyron"]
[Result "1-0"]
[ECO "E90"]
[WhiteElo "2536"]
[BlackElo "2336"]
[PlyCount "71"]
[EventDate "2019.??.??"]
[TimeControl "5400+30"]
[WhiteClock "0:09:40"]
[BlackClock "0:30:23"]

1. d4 {[%emt 0:00:00]} Nf6 {[%emt 0:00:09]} 2. c4 {[%emt 0:00:14]} g6 {[%emt 0:00:15]} 3. Nc3 {[%emt 0:00:06]} Bg7 {[%emt 0:00:08]} 4. e4 {[%emt 0:00:10]} d6 {[%emt 0:00:04]} 5. Nf3 {[%emt 0:00:14]} O-O {[%emt 0:00:08]} 6. h3 {[%emt 0:00:22]} Na6 {[%emt 0:00:39]} 7. Be3 {[%emt 0:01:25]} e5 {[%emt 0:00:36]} 8. d5 {[%emt 0:01:34]} Nh5 {[%emt 0:00:24]} 9. Rc1 {[%emt 0:03:47]} f5 {[%emt 0:01:19]} 10. a3 {[%emt 0:01:06]} fxe4 {[%emt 0:01:05]} 11. Nd2 {[%emt 0:08:04]} Nc5 {[%emt 0:04:39]} 12. Ndxe4 {[%emt 0:02:53]} Nxe4 {[%emt 0:02:50]} 13. Nxe4 {[%emt 0:00:01]} Qh4 {[%emt 0:06:09]} 14. Nc3 {[%emt 0:14:28]} Bh6 {[%emt 0:12:49]} 15. Qd2 {[%emt 0:01:50]} Bf4 {[%emt 0:05:56]} 16. Ne2 {[%emt 0:08:34]} Bxe3 {[%emt 0:11:21]} 17. Qxe3 {[%emt 0:00:00]} Bd7 {[%emt 0:04:58]} 18. g3 {[%emt 0:02:11]} Qe7 {[%emt 0:01:11]} 19. Bg2 {[%emt 0:01:51]} Ng7 {[%emt 0:01:12]} 20. g4 {[%emt 0:02:19]} b6 {[%emt 0:05:56]} 21. O-O {[%emt 0:03:36]} h5 {[%emt 0:05:08]} 22. f3 {[%emt 0:01:46]} Kh7 {[%emt 0:01:04]} 23. Rf2 {[%emt 0:02:24]} a5 {[%emt 0:01:19]} 24. Rcf1 {[%emt 0:01:25]} Rae8 {[%emt 0:00:45]} 25. b4 {[%emt 0:02:17]} axb4 {[%emt 0:00:38]} 26. axb4 {[%emt 0:00:00]} Qh4 {[%emt 0:01:50]} 27. Ra1 {[%emt 0:01:15]} Ra8 {[%emt 0:02:39]} 28. Rff1 {[%emt 0:00:25]} Qf6 {[%emt 0:14:17]} 29. Nc3 {[%emt 0:03:08]} Rxa1 {[%emt 0:00:22]} 30. Rxa1 {[%emt 0:00:13]} e4 {[%emt 0:00:14]} 31. Rf1 {[%emt 0:06:09]} exf3 {[%emt 0:02:19]} 32. Rxf3 {[%emt 0:00:16]} Qd8 {[%emt 0:02:30]} 33. Ne4 {[%emt 0:01:46]} hxg4 {[%emt 0:01:25]} 34. hxg4 {[%emt 0:00:51]} Bxg4 {[%emt 0:01:19]} 35. Rxf8 {[%emt 0:00:38]} Qxf8 {[%emt 0:00:13]} 36. Qg5 {[%emt 0:00:19]} 1-0

[Event "2019 National Open"]
[Site "Las Vegas"]
[Date "2019.06.13"]
[Round "2"]
[White "Shetty, Atulya"]
[Black "Lee, Megan"]
[Result "1-0"]
[ECO "A15"]
[WhiteElo "2431"]
[BlackElo "2115"]
[PlyCount "61"]
[EventDate "2019.??.??"]
[TimeControl "5400+30"]
[WhiteClock "0:03:50"]
[BlackClock "0:27:43"]

1. c4 {[%emt 0:00:00]} Nf6 {[%emt 0:00:01]} 2. g3 {[%emt 0:00:58]} c6 {[%emt 0:00:01]} 3. Bg2 {[%emt 0:00:01]} d5 {[%emt 0:00:00]} 4. Nf3 {[%emt 0:00:26]} Nbd7 {[%emt 0:00:01]} 5. O-O {[%emt 0:01:27]} dxc4 {[%emt 0:00:19]} 6. Qc2 {[%emt 0:00:50]} Nb6 {[%emt 0:00:01]} 7. Na3 {[%emt 0:02:57]} Qd5 {[%emt 0:07:23]} 8. Ne1 {[%emt 0:04:48]} Qd8 {[%emt 0:00:01]} 9. Nxc4 {[%emt 0:01:20]} Nxc4 {[%emt 0:00:50]} 10. Qxc4 {[%emt 0:00:00]} e5 {[%emt 0:00:00]} 11. Nf3 {[%emt 0:09:15]} Bd6 {[%emt 0:10:51]} 12. b3 {[%emt 0:11:31]} Be6 {[%emt 0:07:30]} 13. Qc2 {[%emt 0:05:31]} Bd5 {[%emt 0:10:10]} 14. Bb2 {[%emt 0:07:08]} Qc7 {[%emt 0:15:19]} 15. Rae1 {[%emt 0:07:50]} O-O-O {[%emt 0:14:35]} 16. e4 {[%emt 0:02:58]} Bxe4 {[%emt 0:01:47]} 17. Rxe4 {[%emt 0:00:01]} Nxe4 {[%emt 0:00:02]} 18. Qxe4 {[%emt 0:00:06]} f6 {[%emt 0:00:25]} 19. d4 {[%emt 0:02:48]} exd4 {[%emt 0:05:45]} 20. Nxd4 {[%emt 0:00:00]} Rde8 {[%emt 0:07:13]} 21. Qd3 {[%emt 0:00:01]} Be5 {[%emt 0:02:58]} 22. Nb5 {[%emt 0:12:34]} Qd8 {[%emt 0:09:00]} 23. Nxa7+ {[%emt 0:04:22]} Kb8 {[%emt 0:06:04]} 24. Bxe5+ {[%emt 0:00:01]} Rxe5 {[%emt 0:00:00]} 25. Nxc6+ {[%emt 0:00:00]} bxc6 {[%emt 0:00:00]} 26. Qa6 {[%emt 0:00:01]} Qc8 {[%emt 0:01:04]} 27. Qa4 {[%emt 0:00:01]} Rb5 {[%emt 0:00:00]} 28. Rc1 {[%emt 0:00:01]} Rb6 {[%emt 0:00:00]} 29. Bxc6 {[%emt 0:00:01]} Qd8 {[%emt 0:00:00]} 30. Qa8+ {[%emt 0:00:01]} Kc7 {[%emt 0:00:00]} 31. Be8+ {[%emt 0:00:49]} 1-0

[Event "2019 National Open"]
[Site "Las Vegas"]
[Date "2019.06.13"]
[Round "2"]
[White "Vigorito, David"]
[Black "Shtembuliak, Evgeny"]
[Result "1-0"]
[ECO "D02"]
[WhiteElo "2338"]
[BlackElo "2538"]
[PlyCount "99"]
[EventDate "2019.??.??"]
[TimeControl "5400+30"]
[WhiteClock "0:01:03"]
[BlackClock "0:01:33"]

1. Nf3 {[%emt 0:00:00]} d5 {[%emt 0:00:09]} 2. d4 {[%emt 0:01:21]} Nf6 {[%emt 0:00:00]} 3. c4 {[%emt 0:00:00]} e6 {[%emt 0:00:00]} 4. g3 {[%emt 0:00:01]} Bb4+ {[%emt 0:00:09]} 5. Bd2 {[%emt 0:00:16]} Be7 {[%emt 0:00:04]} 6. Bg2 {[%emt 0:00:17]} O-O {[%emt 0:00:06]} 7. O-O {[%emt 0:00:07]} Nbd7 {[%emt 0:00:55]} 8. Qc2 {[%emt 0:00:34]} Ne4 {[%emt 0:00:48]} 9. Ne1 {[%emt 0:03:37]} Nxd2 {[%emt 0:15:16]} 10. Nxd2 {[%emt 0:03:50]} c6 {[%emt 0:01:03]} 11. e4 {[%emt 0:01:03]} dxe4 {[%emt 0:01:07]} 12. Nxe4 {[%emt 0:00:31]} f5 {[%emt 0:01:22]} 13. Nc3 {[%emt 0:03:00]} e5 {[%emt 0:00:07]} 14. d5 {[%emt 0:12:39]} e4 {[%emt 0:03:10]} 15. Rd1 {[%emt 0:00:48]} Bf6 {[%emt 0:09:13]} 16. f3 {[%emt 0:10:42]} Ne5 {[%emt 0:07:27]} 17. Kh1 {[%emt 0:10:35]} Qe8 {[%emt 0:08:46]} 18. c5 {[%emt 0:17:28]} Qh5 {[%emt 0:13:16]} 19. fxe4 {[%emt 0:13:00]} Ng4 {[%emt 0:02:08]} 20. Bf3 {[%emt 0:00:28]} fxe4 {[%emt 0:03:51]} 21. Nxe4 {[%emt 0:01:02]} Qh3 {[%emt 0:03:55]} 22. Nd3 {[%emt 0:06:49]} Ne3 {[%emt 0:01:35]} 23. Qe2 {[%emt 0:01:18]} Nxd1 {[%emt 0:04:08]} 24. Rxd1 {[%emt 0:01:48]} Bd7 {[%emt 0:01:26]} 25. Nd6 {[%emt 0:02:15]} Rab8 {[%emt 0:11:39]} 26. Nf4 {[%emt 0:04:18]} Qh6 {[%emt 0:00:24]} 27. dxc6 {[%emt 0:00:27]} Bxc6 {[%emt 0:01:29]} 28. Bxc6 {[%emt 0:00:23]} bxc6 {[%emt 0:00:00]} 29. Qe6+ {[%emt 0:00:13]} Kh8 {[%emt 0:00:04]} 30. Nf7+ {[%emt 0:00:22]} Rxf7 {[%emt 0:00:04]} 31. Qxf7 {[%emt 0:00:04]} Qg5 {[%emt 0:05:41]} 32. Re1 {[%emt 0:01:44]} h6 {[%emt 0:01:04]} 33. Re8+ {[%emt 0:00:34]} Rxe8 {[%emt 0:00:00]} 34. Qxe8+ {[%emt 0:00:00]} Kh7 {[%emt 0:00:02]} 35. Qxc6 {[%emt 0:02:19]} Qf5 {[%emt 0:00:40]} 36. Qd5 {[%emt 0:02:52]} Qb1+ {[%emt 0:00:06]} 37. Kg2 {[%emt 0:00:04]} Qxb2+ {[%emt 0:00:08]} 38. Kh3 {[%emt 0:00:20]} Qc1 {[%emt 0:03:44]} 39. c6 {[%emt 0:00:02]} Qf1+ {[%emt 0:00:01]} 40. Kg4 {[%emt 0:00:13]} Qc1 {[%emt 0:00:37]} 41. Kf5 {[%emt 0:00:00]} Bg5 {[%emt 0:02:55]} 42. Ke6 {[%emt 0:02:13]} Qe3+ {[%emt 0:00:55]} 43. Kd7 {[%emt 0:00:24]} Qe7+ {[%emt 0:00:48]} 44. Kc8 {[%emt 0:00:07]} Qf8+ {[%emt 0:00:16]} 45. Kb7 {[%emt 0:01:37]} Qb4+ {[%emt 0:00:06]} 46. Kxa7 {[%emt 0:00:18]} Qa4+ {[%emt 0:01:01]} 47. Kb7 {[%emt 0:00:00]} Qb4+ {[%emt 0:00:07]} 48. Kc7 {[%emt 0:00:00]} Qe7+ {[%emt 0:00:47]} 49. Qd7 {[%emt 0:00:10]} Qc5 {[%emt 0:00:48]} 50. Qxg7+ {[%emt 0:01:14]} 1-0

[Event "2019 National Open"]
[Site "Las Vegas"]
[Date "2019.06.13"]
[Round "2"]
[White "Wang, Annie"]
[Black "Shabalov, Alexander"]
[Result "1-0"]
[ECO "D31"]
[WhiteElo "2334"]
[BlackElo "2528"]
[PlyCount "69"]
[EventDate "2019.??.??"]
[TimeControl "5400+30"]
[WhiteClock "0:42:50"]
[BlackClock "0:01:24"]

1. d4 {[%emt 0:00:00]} d5 {[%emt 0:00:01]} 2. c4 {[%emt 0:00:05]} e6 {[%emt 0:00:07]} 3. Nc3 {[%emt 0:00:06]} c6 {[%emt 0:00:22]} 4. e3 {[%emt 0:00:27]} Nd7 {[%emt 0:00:34]} 5. Qc2 {[%emt 0:01:51]} Nh6 {[%emt 0:00:54]} 6. Bd3 {[%emt 0:02:18]} f5 {[%emt 0:00:30]} 7. Nge2 {[%emt 0:03:32]} Bd6 {[%emt 0:00:11]} 8. Bd2 {[%emt 0:03:55]} O-O {[%emt 0:00:09]} 9. O-O-O {[%emt 0:03:25]} b5 {[%emt 0:00:13]} 10. cxb5 {[%emt 0:04:11]} c5 {[%emt 0:00:06]} 11. dxc5 {[%emt 0:01:41]} Nxc5 {[%emt 0:00:32]} 12. f3 {[%emt 0:12:11]} a6 {[%emt 0:13:32]} 13. Nd4 {[%emt 0:08:49]} Nxd3+ {[%emt 0:04:47]} 14. Qxd3 {[%emt 0:00:37]} axb5 {[%emt 0:00:01]} 15. Kb1 {[%emt 0:04:41]} Bd7 {[%emt 0:14:40]} 16. Ncxb5 {[%emt 0:05:45]} Be7 {[%emt 0:00:05]} 17. Rc1 {[%emt 0:08:20]} Qb6 {[%emt 0:00:55]} 18. Rc7 {[%emt 0:09:43]} Rfd8 {[%emt 0:01:48]} 19. Rhc1 {[%emt 0:02:59]} Bf6 {[%emt 0:10:50]} 20. Nc6 {[%emt 0:09:22]} Be8 {[%emt 0:00:04]} 21. Qb3 {[%emt 0:07:40]} Rd7 {[%emt 0:00:06]} 22. Ncd4 {[%emt 0:03:06]} Rdd8 {[%emt 0:02:43]} 23. Nc6 {[%emt 0:03:38]} Rd7 {[%emt 0:00:03]} 24. Rxd7 {[%emt 0:00:57]} Bxd7 {[%emt 0:00:04]} 25. Nbd4 {[%emt 0:00:53]} Qxb3 {[%emt 0:01:08]} 26. Nxb3 {[%emt 0:00:09]} Nf7 {[%emt 0:00:34]} 27. Bb4 {[%emt 0:01:47]} g5 {[%emt 0:00:55]} 28. Ne7+ {[%emt 0:00:42]} Kg7 {[%emt 0:02:44]} 29. Rc7 {[%emt 0:00:28]} Rd8 {[%emt 0:01:03]} 30. Ra7 {[%emt 0:01:09]} Bb5 {[%emt 0:01:38]} 31. Nc5 {[%emt 0:00:00]} Rd6 {[%emt 0:00:14]} 32. Rc7 {[%emt 0:00:00]} Ba6 {[%emt 0:02:36]} 33. a4 {[%emt 0:00:45]} d4 {[%emt 0:00:00]} 34. exd4 {[%emt 0:00:52]} Bxd4 {[%emt 0:00:01]} 35. Nxe6+ {[%emt 0:00:02]} 1-0

[Event "2019 National Open"]
[Site "Las Vegas"]
[Date "2019.06.13"]
[Round "2"]
[White "Serna, Jeffrey"]
[Black "Ghatti, Sanjay"]
[Result "0-1"]
[ECO "B12"]
[WhiteElo "2052"]
[BlackElo "2190"]
[PlyCount "86"]
[EventDate "2019.??.??"]
[TimeControl "5400+30"]
[WhiteClock "0:16:41"]
[BlackClock "0:54:13"]

1. e4 {[%emt 0:00:00]} c6 {[%emt 0:00:07]} 2. d4 {[%emt 0:00:05]} d5 {[%emt 0:00:02]} 3. f3 {[%emt 0:00:04]} Qb6 {[%emt 0:00:07]} 4. Nc3 {[%emt 0:00:06]} dxe4 {[%emt 0:01:31]} 5. fxe4 {[%emt 0:00:08]} e5 {[%emt 0:00:06]} 6. Nf3 {[%emt 0:02:15]} exd4 {[%emt 0:00:15]} 7. Qxd4 {[%emt 0:00:29]} Qxd4 {[%emt 0:03:06]} 8. Nxd4 {[%emt 0:00:03]} Bc5 {[%emt 0:02:20]} 9. Nb3 {[%emt 0:00:00]} Bb6 {[%emt 0:00:09]} 10. a4 {[%emt 0:00:48]} a5 {[%emt 0:00:49]} 11. Bf4 {[%emt 0:02:55]} Nf6 {[%emt 0:02:39]} 12. Bd6 {[%emt 0:03:16]} Na6 {[%emt 0:09:22]} 13. Nd2 {[%emt 0:14:51]} Nb4 {[%emt 0:04:53]} 14. Nc4 {[%emt 0:23:34]} Nxc2+ {[%emt 0:54:48]} 15. Kd2 {[%emt 0:00:00]} Nxa1 {[%emt 0:00:00]} 16. Nxb6 {[%emt 0:00:01]} Be6 {[%emt 0:00:02]} 17. Nxa8 {[%emt 0:00:01]} Nb3+ {[%emt 0:00:00]} 18. Kc2 {[%emt 0:00:01]} Kd7 {[%emt 0:00:01]} 19. Bg3 {[%emt 0:00:39]} Rxa8 {[%emt 0:00:01]} 20. Bf2 {[%emt 0:00:06]} Ke7 {[%emt 0:00:00]} 21. h3 {[%emt 0:00:00]} Rd8 {[%emt 0:00:01]} 22. Bh4 {[%emt 0:00:00]} Ke8 {[%emt 0:00:00]} 23. Bxf6 {[%emt 0:00:01]} Rd2+ {[%emt 0:00:01]} 24. Kb1 {[%emt 0:00:00]} gxf6 {[%emt 0:00:00]} 25. Be2 {[%emt 0:00:01]} f5 {[%emt 0:00:08]} 26. Rd1 {[%emt 0:00:01]} Rxd1+ {[%emt 0:00:00]} 27. Bxd1 {[%emt 0:00:01]} Nd2+ {[%emt 0:01:05]} 28. Kc2 {[%emt 0:00:00]} Nxe4 {[%emt 0:01:32]} 29. Ne2 {[%emt 0:00:00]} Ke7 {[%emt 0:02:20]} 30. Nd4 {[%emt 0:00:02]} Kd6 {[%emt 0:00:00]} 31. Kd3 {[%emt 0:00:00]} Nf2+ {[%emt 0:00:01]} 32. Ke2 {[%emt 0:00:04]} Nxd1 {[%emt 0:00:39]} 33. Kxd1 {[%emt 0:00:00]} Kc5 {[%emt 0:00:01]} 34. Nf3 {[%emt 0:02:05]} Kb4 {[%emt 0:00:00]} 35. h4 {[%emt 0:00:00]} h6 {[%emt 0:00:38]} 36. Kc2 {[%emt 0:02:19]} Kxa4 {[%emt 0:00:00]} 37. Kc3 {[%emt 0:00:00]} b5 {[%emt 0:00:00]} 38. Nd4 {[%emt 0:00:00]} b4+ {[%emt 0:00:00]} 39. Kc2 {[%emt 0:01:17]} Bd5 {[%emt 0:04:02]} 40. Kd3 {[%emt 0:00:01]} f4 {[%emt 0:00:01]} 41. h5 {[%emt 0:00:00]} c5 {[%emt 0:01:17]} 42. Nf5 {[%emt 0:00:00]} Kb3 {[%emt 0:02:45]} 43. Nxh6 {[%emt 0:02:03]} c4+ {[%emt 0:00:00]} 0-1

[Event "2019 National Open"]
[Site "Las Vegas"]
[Date "2019.06.13"]
[Round "2"]
[White "Mishra, Prateek"]
[Black "Nestorovic, Nikola"]
[Result "0-1"]
[ECO "C70"]
[WhiteElo "2034"]
[BlackElo "2481"]
[PlyCount "58"]
[EventDate "2019.??.??"]
[TimeControl "5400+30"]
[WhiteClock "0:58:35"]
[BlackClock "0:18:47"]

1. e4 {[%emt 0:00:00]} e5 {[%emt 0:00:04]} 2. Nf3 {[%emt 0:00:04]} Nc6 {[%emt 0:00:03]} 3. Bb5 {[%emt 0:00:07]} a6 {[%emt 0:00:11]} 4. Ba4 {[%emt 0:00:13]} Nge7 {[%emt 0:00:07]} 5. Nc3 {[%emt 0:00:22]} d6 {[%emt 0:01:11]} 6. d4 {[%emt 0:00:19]} exd4 {[%emt 0:03:27]} 7. Nxd4 {[%emt 0:00:15]} Bd7 {[%emt 0:00:18]} 8. O-O {[%emt 0:01:06]} b5 {[%emt 0:02:10]} 9. Bb3 {[%emt 0:01:03]} Nxd4 {[%emt 0:01:16]} 10. Qxd4 {[%emt 0:12:24]} c5 {[%emt 0:00:09]} 11. Qxd6 {[%emt 0:07:13]} c4 {[%emt 0:00:10]} 12. Bxc4 {[%emt 0:12:44]} bxc4 {[%emt 0:00:10]} 13. Rd1 {[%emt 0:00:17]} Bg4 {[%emt 0:07:25]} 14. Qxd8+ {[%emt 0:01:09]} Rxd8 {[%emt 0:00:04]} 15. Rxd8+ {[%emt 0:00:08]} Kxd8 {[%emt 0:00:04]} 16. b3 {[%emt 0:07:08]} Be6 {[%emt 0:03:30]} 17. Bg5 {[%emt 0:02:19]} Kc7 {[%emt 0:03:31]} 18. Rd1 {[%emt 0:02:02]} Ng6 {[%emt 0:03:37]} 19. Nd5+ {[%emt 0:10:20]} Kc6 {[%emt 0:05:21]} 20. bxc4 {[%emt 0:02:52]} Ne5 {[%emt 0:01:26]} 21. Rb1 {[%emt 0:08:08]} Bc5 {[%emt 0:00:42]} 22. Nb4+ {[%emt 0:04:52]} Bxb4 {[%emt 0:00:36]} 23. Rxb4 {[%emt 0:00:02]} Nxc4 {[%emt 0:01:02]} 24. Kf1 {[%emt 0:06:19]} a5 {[%emt 0:00:08]} 25. Rb1 {[%emt 0:00:41]} Nd6 {[%emt 0:06:46]} 26. f3 {[%emt 0:01:06]} Bxa2 {[%emt 0:01:00]} 27. Ra1 {[%emt 0:01:17]} Bc4+ {[%emt 0:00:05]} 28. Kf2 {[%emt 0:00:18]} Ra8 {[%emt 0:00:12]} 29. e5 {[%emt 0:00:55]} Nb7 {[%emt 0:01:10]} 0-1

[Event "2019 National Open"]
[Site "Las Vegas"]
[Date "2019.06.13"]
[Round "2"]
[White "Romero, Jonah"]
[Black "Logozar, Elijah"]
[Result "0-1"]
[ECO "D47"]
[WhiteElo "1940"]
[BlackElo "2117"]
[PlyCount "124"]
[EventDate "2019.??.??"]
[TimeControl "5400+30"]
[WhiteClock "0:22:10"]
[BlackClock "0:04:22"]

1. d4 {[%emt 0:00:00]} d5 {[%emt 0:00:01]} 2. c4 {[%emt 0:00:01]} c6 {[%emt 0:00:01]} 3. Nc3 {[%emt 0:00:01]} Nf6 {[%emt 0:00:01]} 4. e3 {[%emt 0:00:44]} e6 {[%emt 0:00:01]} 5. Nf3 {[%emt 0:00:01]} Nbd7 {[%emt 0:00:01]} 6. Bd3 {[%emt 0:00:28]} dxc4 {[%emt 0:00:00]} 7. Bxc4 {[%emt 0:00:00]} b5 {[%emt 0:00:01]} 8. Bd3 {[%emt 0:00:28]} Bb7 {[%emt 0:00:08]} 9. O-O {[%emt 0:01:12]} a6 {[%emt 0:00:09]} 10. e4 {[%emt 0:00:18]} c5 {[%emt 0:00:14]} 11. d5 {[%emt 0:00:17]} c4 {[%emt 0:00:00]} 12. Bc2 {[%emt 0:03:29]} Qc7 {[%emt 0:00:11]} 13. dxe6 {[%emt 0:02:03]} fxe6 {[%emt 0:00:15]} 14. Ng5 {[%emt 0:00:45]} Nc5 {[%emt 0:05:46]} 15. e5 {[%emt 0:02:18]} Qxe5 {[%emt 0:00:01]} 16. Re1 {[%emt 0:00:01]} Qd6 {[%emt 0:00:30]} 17. Qxd6 {[%emt 0:02:50]} Bxd6 {[%emt 0:00:01]} 18. Be3 {[%emt 0:03:03]} O-O {[%emt 0:01:11]} 19. Rad1 {[%emt 0:00:11]} Be7 {[%emt 0:00:34]} 20. Bxc5 {[%emt 0:01:59]} Bxc5 {[%emt 0:00:00]} 21. Nxe6 {[%emt 0:01:04]} Rfc8 {[%emt 0:00:02]} 22. Nxc5 {[%emt 0:02:23]} Rxc5 {[%emt 0:11:22]} 23. Re7 {[%emt 0:01:47]} Rb8 {[%emt 0:09:58]} 24. f3 {[%emt 0:05:59]} Kf8 {[%emt 0:03:54]} 25. Rde1 {[%emt 0:03:16]} Rcc8 {[%emt 0:03:00]} 26. Kf2 {[%emt 0:16:22]} Rd8 {[%emt 0:01:15]} 27. R1e2 {[%emt 0:04:08]} Rd6 {[%emt 0:07:48]} 28. g4 {[%emt 0:08:15]} h6 {[%emt 0:03:14]} 29. Kg3 {[%emt 0:10:50]} Bc6 {[%emt 0:05:57]} 30. R7e5 {[%emt 0:07:38]} b4 {[%emt 0:05:16]} 31. Nb1 {[%emt 0:11:55]} Bb5 {[%emt 0:00:01]} 32. Re1 {[%emt 0:05:12]} Re8 {[%emt 0:04:40]} 33. a3 {[%emt 0:02:10]} a5 {[%emt 0:05:51]} 34. Bf5 {[%emt 0:04:29]} Rxe5 {[%emt 0:00:01]} 35. Rxe5 {[%emt 0:00:01]} Rd5 {[%emt 0:04:45]} 36. Re1 {[%emt 0:00:01]} Bd7 {[%emt 0:00:02]} 37. Bg6 {[%emt 0:02:11]} Be8 {[%emt 0:02:34]} 38. Bc2 {[%emt 0:00:00]} Kf7 {[%emt 0:01:17]} 39. Kf2 {[%emt 0:00:00]} g5 {[%emt 0:00:04]} 40. Re2 {[%emt 0:00:00]} Bb5 {[%emt 0:00:33]} 41. Re1 {[%emt 0:00:00]} Rd6 {[%emt 0:01:56]} 42. Re5 {[%emt 0:00:00]} Rd5 {[%emt 0:01:38]} 43. Re3 {[%emt 0:00:00]} Bd7 {[%emt 0:01:36]} 44. Ke1 {[%emt 0:00:11]} Rd4 {[%emt 0:02:25]} 45. Nd2 {[%emt 0:03:10]} Nd5 {[%emt 0:02:03]} 46. Re5 {[%emt 0:00:00]} Kf6 {[%emt 0:00:01]} 47. Re2 {[%emt 0:00:00]} Nf4 {[%emt 0:00:32]} 48. Ne4+ {[%emt 0:00:00]} Ke5 {[%emt 0:01:23]} 49. Rf2 {[%emt 0:00:35]} Bc6 {[%emt 0:00:01]} 50. Ng3 {[%emt 0:01:44]} Rd3 {[%emt 0:02:49]} 51. Bd1 {[%emt 0:00:00]} bxa3 {[%emt 0:00:01]} 52. bxa3 {[%emt 0:00:00]} Rxa3 {[%emt 0:00:01]} 53. Rc2 {[%emt 0:02:17]} Ra1 {[%emt 0:00:01]} 54. Rxc4 {[%emt 0:00:35]} Bxf3 {[%emt 0:00:01]} 55. Kf2 {[%emt 0:00:00]} Bxd1 {[%emt 0:00:34]} 56. Rc3 {[%emt 0:00:00]} Ra2+ {[%emt 0:00:34]} 57. Ke3 {[%emt 0:00:00]} Nd5+ {[%emt 0:00:00]} 58. Kd3 {[%emt 0:00:00]} Nxc3 {[%emt 0:00:00]} 59. Ke3 {[%emt 0:00:13]} Nd5+ {[%emt 0:00:59]} 60. Kd3 {[%emt 0:00:02]} Ra3+ {[%emt 0:00:51]} 61. Kd2 {[%emt 0:00:01]} Rxg3 {[%emt 0:00:43]} 62. hxg3 {[%emt 0:00:00]} Bxg4 {[%emt 0:00:01]} 0-1